[Event "Titled Tuesday Blitz October 11 Early 2022"]
[White "Shimanov, Aleksandr"]
[Black "Hristodoulou, Panagiotis"]
[WhiteFideId "4198603"]
[BlackFideId "4214340"]
[WhiteElo "2605"]
[BlackElo "2272"]
[Result "1-0"]
[Round "07"]
[TimeControl "180+1"]
[Date "2022.10.11"]
[WhiteClock "0:00:19"]
[BlackClock "0:00:03"]

1. e4 {[%clk 0:03:00]}  e5 {[%clk 0:03:00]} 2. Nf3 {[%clk 0:02:59]}  Nc6 {[%clk 0:02:58]} 3. Nc3 {[%clk 0:02:57]}  Nf6 {[%clk 0:02:58]} 4. h3 {[%clk 0:02:56]}  Bb4 {[%clk 0:02:42]} 5. Nd5 {[%clk 0:02:55]}  Bc5 {[%clk 0:02:40]} 6. c3 {[%clk 0:02:54]}  O-O {[%clk 0:02:26]} 7. d3 {[%clk 0:02:51]}  Nxd5 {[%clk 0:02:22]} 8. exd5 {[%clk 0:02:51]}  Ne7 {[%clk 0:02:22]} 9. Nxe5 {[%clk 0:02:51]}  Re8 {[%clk 0:02:18]} 10. d4 {[%clk 0:02:51]}  d6 {[%clk 0:01:36]} 11. Nxf7 {[%clk 0:02:27]}  Nf5+ {[%clk 0:00:36]} 12. Be2 {[%clk 0:02:24]}  Kxf7 {[%clk 0:00:34]} 13. dxc5 {[%clk 0:02:24]}  Qe7 {[%clk 0:00:34]} 14. cxd6 {[%clk 0:02:13]}  cxd6 {[%clk 0:00:33]} 15. Be3 {[%clk 0:01:23]}  Nxe3 {[%clk 0:00:31]} 16. fxe3 {[%clk 0:01:24]}  Qh4+ {[%clk 0:00:31]} 17. Kd2 {[%clk 0:01:23]}  Kg8 {[%clk 0:00:26]} 18. Bf3 {[%clk 0:01:21]}  Bd7 {[%clk 0:00:24]} 19. Re1 {[%clk 0:01:14]}  Bb5 {[%clk 0:00:22]} 20. a4 {[%clk 0:00:57]}  Bc4 {[%clk 0:00:13]} 21. Kc1 {[%clk 0:00:56]}  Rac8 {[%clk 0:00:12]} 22. a5 {[%clk 0:00:55]}  Qg5 {[%clk 0:00:06]} 23. Qd4 {[%clk 0:00:53]}  Qg3 {[%clk 0:00:05]} 24. Qd2 {[%clk 0:00:41]}  Bb5 {[%clk 0:00:06]} 25. b3 {[%clk 0:00:37]}  Rc5 {[%clk 0:00:04]} 26. Kb2 {[%clk 0:00:37]}  Rec8 {[%clk 0:00:04]} 27. Rac1 {[%clk 0:00:30]}  Bd7 {[%clk 0:00:04]} 28. b4 {[%clk 0:00:29]}  R5c7 {[%clk 0:00:05]} 29. e4 {[%clk 0:00:25]}  b6 {[%clk 0:00:05]} 30. axb6 {[%clk 0:00:25]}  axb6 {[%clk 0:00:06]} 31. Qe3 {[%clk 0:00:21]}  h6 {[%clk 0:00:05]} 32. Bg4 {[%clk 0:00:20]}  Qxg2+ {[%clk 0:00:03]} 33. Re2 {[%clk 0:00:19]} 1-0


[Site "https://www.chess.com"]

[Event "Titled Tuesday Blitz October 11 Early 2022"]
[White "Slaby, Jerzy"]
[Black "Moreno Perez, Tobias Sebastian"]
[WhiteFideId "1121405"]
[BlackFideId "186716"]
[WhiteElo "2541"]
[BlackElo "2478"]
[Result "1-0"]
[Round "07"]
[TimeControl "180+1"]
[Date "2022.10.12"]
[WhiteClock "0:01:17"]
[BlackClock "0:00:17"]

1. Nf3 {[%clk 0:03:00]}  d5 {[%clk 0:02:57]} 2. c4 {[%clk 0:03:00]}  c6 {[%clk 0:02:54]} 3. d4 {[%clk 0:02:59]}  Nf6 {[%clk 0:02:54]} 4. g3 {[%clk 0:02:59]}  dxc4 {[%clk 0:02:53]} 5. Bg2 {[%clk 0:02:59]}  Nbd7 {[%clk 0:02:53]} 6. O-O {[%clk 0:02:59]}  Nb6 {[%clk 0:02:53]} 7. a4 {[%clk 0:02:58]}  a5 {[%clk 0:02:53]} 8. Nc3 {[%clk 0:02:55]}  Bg4 {[%clk 0:02:51]} 9. Ne5 {[%clk 0:02:54]}  Be6 {[%clk 0:02:51]} 10. e4 {[%clk 0:02:53]}  g6 {[%clk 0:02:50]} 11. Qe2 {[%clk 0:02:49]}  Bg7 {[%clk 0:02:49]} 12. Rd1 {[%clk 0:02:49]}  O-O {[%clk 0:02:47]} 13. Be3 {[%clk 0:02:32]}  Qc7 {[%clk 0:02:34]} 14. f4 {[%clk 0:02:28]}  Nfd7 {[%clk 0:02:30]} 15. h4 {[%clk 0:02:23]}  Nxe5 {[%clk 0:02:30]} 16. dxe5 {[%clk 0:02:23]}  Rfd8 {[%clk 0:02:22]} 17. Qf2 {[%clk 0:02:24]}  Rxd1+ {[%clk 0:01:46]} 18. Rxd1 {[%clk 0:02:24]}  Nc8 {[%clk 0:01:46]} 19. f5 {[%clk 0:02:23]}  Bd7 {[%clk 0:01:46]} 20. f6 {[%clk 0:02:16]}  Bf8 {[%clk 0:01:43]} 21. Bf4 {[%clk 0:02:09]}  Be6 {[%clk 0:01:42]} 22. Kh2 {[%clk 0:02:05]}  Nb6 {[%clk 0:01:32]} 23. Be3 {[%clk 0:02:00]}  Nd7 {[%clk 0:01:30]} 24. Bf4 {[%clk 0:01:48]}  Nxe5 {[%clk 0:01:21]} 25. fxe7 {[%clk 0:01:34]}  Bxe7 {[%clk 0:01:17]} 26. Qd4 {[%clk 0:01:31]}  f6 {[%clk 0:01:09]} 27. Bxe5 {[%clk 0:01:28]}  Qxe5 {[%clk 0:01:02]} 28. Qb6 {[%clk 0:01:28]}  Rb8 {[%clk 0:00:45]} 29. Ne2 {[%clk 0:01:27]}  Bc5 {[%clk 0:00:37]} 30. Rd8+ {[%clk 0:01:24]}  Kg7 {[%clk 0:00:34]} 31. Qxa5 {[%clk 0:01:20]}  Bg1+ {[%clk 0:00:32]} 32. Nxg1 {[%clk 0:01:20]}  Qxa5 {[%clk 0:00:31]} 33. Rxb8 {[%clk 0:01:20]}  Qb6 {[%clk 0:00:27]} 34. a5 {[%clk 0:01:17]}  Qxb2 {[%clk 0:00:26]} 35. a6 {[%clk 0:01:17]}  Qb6 {[%clk 0:00:17]} 36. Rxb7+ {[%clk 0:01:17]} 1-0


[Site "https://www.chess.com"]

[Event "Titled Tuesday Blitz October 11 Early 2022"]
[White "Soto Vega, Jorge"]
[Black "Halkias, Stelios"]
[WhiteFideId "3800580"]
[BlackFideId "4201809"]
[WhiteElo "2263"]
[BlackElo "2453"]
[Result "0-1"]
[Round "07"]
[TimeControl "180+1"]
[Date "2022.10.12"]
[WhiteClock "0:00:19"]
[BlackClock "0:01:22"]

1. e4 {[%clk 0:02:11]}  e5 {[%clk 0:02:58]} 2. Nf3 {[%clk 0:02:10]}  Nc6 {[%clk 0:02:58]} 3. Bc4 {[%clk 0:02:08]}  Nf6 {[%clk 0:02:57]} 4. Ng5 {[%clk 0:02:06]}  d5 {[%clk 0:02:57]} 5. exd5 {[%clk 0:02:06]}  Na5 {[%clk 0:02:57]} 6. Bb5+ {[%clk 0:02:06]}  c6 {[%clk 0:02:58]} 7. dxc6 {[%clk 0:02:06]}  bxc6 {[%clk 0:02:58]} 8. Bd3 {[%clk 0:02:07]}  Nd5 {[%clk 0:02:56]} 9. Nf3 {[%clk 0:02:06]}  Bd6 {[%clk 0:02:46]} 10. O-O {[%clk 0:02:05]}  Nf4 {[%clk 0:02:42]} 11. Re1 {[%clk 0:02:05]}  Nxd3 {[%clk 0:02:40]} 12. cxd3 {[%clk 0:02:04]}  O-O {[%clk 0:02:40]} 13. Nxe5 {[%clk 0:02:04]}  c5 {[%clk 0:02:39]} 14. d4 {[%clk 0:01:56]}  cxd4 {[%clk 0:02:36]} 15. d3 {[%clk 0:01:56]}  Bb7 {[%clk 0:02:35]} 16. Nd2 {[%clk 0:01:55]}  Bxe5 {[%clk 0:02:15]} 17. Rxe5 {[%clk 0:01:54]}  Nc6 {[%clk 0:02:15]} 18. Re1 {[%clk 0:01:49]}  Qd5 {[%clk 0:02:04]} 19. Qb3 {[%clk 0:01:38]}  Nb4 {[%clk 0:02:04]} 20. Qxd5 {[%clk 0:01:37]}  Bxd5 {[%clk 0:02:04]} 21. Rd1 {[%clk 0:01:23]}  Nc2 {[%clk 0:02:03]} 22. Rb1 {[%clk 0:01:05]}  Bxa2 {[%clk 0:02:02]} 23. b3 {[%clk 0:01:06]}  Bxb1 {[%clk 0:02:02]} 24. Nxb1 {[%clk 0:01:06]}  Rab8 {[%clk 0:02:02]} 25. Nd2 {[%clk 0:01:06]}  Rfe8 {[%clk 0:01:57]} 26. Kf1 {[%clk 0:01:05]}  a5 {[%clk 0:01:52]} 27. h4 {[%clk 0:01:02]}  Rec8 {[%clk 0:01:51]} 28. Nc4 {[%clk 0:00:59]}  Rxb3 {[%clk 0:01:47]} 29. Nxa5 {[%clk 0:00:57]}  Rb1 {[%clk 0:01:46]} 30. Nc4 {[%clk 0:00:57]}  h5 {[%clk 0:01:45]} 31. Ke2 {[%clk 0:00:56]}  Nb4 {[%clk 0:01:40]} 32. Kd2 {[%clk 0:00:55]}  Rb3 {[%clk 0:01:38]} 33. Ke2 {[%clk 0:00:39]}  Re8+ {[%clk 0:01:37]} 34. Kf1 {[%clk 0:00:39]}  Rxd3 {[%clk 0:01:35]} 35. Bd2 {[%clk 0:00:34]}  Nd5 {[%clk 0:01:27]} 36. Ra1 {[%clk 0:00:30]}  Nc3 {[%clk 0:01:27]} 37. Ra5 {[%clk 0:00:24]}  Rc8 {[%clk 0:01:22]} 38. Nd6 {[%clk 0:00:19]}  Rxd2 {[%clk 0:01:22]} 0-1


[Site "https://www.chess.com"]

[Event "Titled Tuesday Blitz October 11 Early 2022"]
[White "Svane, Rasmus"]
[Black "Zou, Chen"]
[WhiteFideId "4657101"]
[BlackFideId "8610959"]
[WhiteElo "2674"]
[BlackElo "2325"]
[Result "1/2-1/2"]
[Round "07"]
[TimeControl "180+1"]
[Date "2022.10.11"]
[WhiteClock "0:01:20"]
[BlackClock "0:00:08"]

1. Nf3 {[%clk 0:02:58]}  Nf6 {[%clk 0:02:59]} 2. g3 {[%clk 0:02:55]}  d5 {[%clk 0:02:59]} 3. Bg2 {[%clk 0:02:55]}  e6 {[%clk 0:03:00]} 4. O-O {[%clk 0:02:55]}  Be7 {[%clk 0:03:00]} 5. c4 {[%clk 0:02:55]}  O-O {[%clk 0:03:00]} 6. b3 {[%clk 0:02:56]}  c5 {[%clk 0:03:00]} 7. cxd5 {[%clk 0:02:55]}  Nxd5 {[%clk 0:03:00]} 8. Nc3 {[%clk 0:02:55]}  Nc6 {[%clk 0:02:49]} 9. Nxd5 {[%clk 0:02:53]}  exd5 {[%clk 0:02:41]} 10. d4 {[%clk 0:02:53]}  Bg4 {[%clk 0:02:39]} 11. Ne5 {[%clk 0:02:42]}  Nxe5 {[%clk 0:02:21]} 12. dxe5 {[%clk 0:02:43]}  Qd7 {[%clk 0:01:55]} 13. Qxd5 {[%clk 0:02:31]}  Qxd5 {[%clk 0:01:54]} 14. Bxd5 {[%clk 0:02:32]}  Bxe2 {[%clk 0:01:54]} 15. Bxb7 {[%clk 0:02:19]}  Bxf1 {[%clk 0:00:42]} 16. Bxa8 {[%clk 0:02:18]}  Rxa8 {[%clk 0:00:43]} 17. Kxf1 {[%clk 0:02:18]}  a5 {[%clk 0:00:44]} 18. a4 {[%clk 0:02:09]}  Rb8 {[%clk 0:00:43]} 19. Bd2 {[%clk 0:02:10]}  Rxb3 {[%clk 0:00:14]} 20. Bxa5 {[%clk 0:02:10]}  h5 {[%clk 0:00:12]} 21. Bd2 {[%clk 0:02:03]}  c4 {[%clk 0:00:12]} 22. Be3 {[%clk 0:01:51]}  c3 {[%clk 0:00:09]} 23. Ke2 {[%clk 0:01:45]}  c2 {[%clk 0:00:07]} 24. Ra2 {[%clk 0:01:31]}  Rxe3+ {[%clk 0:00:03]} 25. Kd2 {[%clk 0:01:30]}  Rc3 {[%clk 0:00:03]} 26. Rxc2 {[%clk 0:01:29]}  Rxc2+ {[%clk 0:00:04]} 27. Kxc2 {[%clk 0:01:30]}  Bb4 {[%clk 0:00:05]} 28. Kb3 {[%clk 0:01:30]}  Be1 {[%clk 0:00:05]} 29. f3 {[%clk 0:01:27]}  Kf8 {[%clk 0:00:05]} 30. Kc4 {[%clk 0:01:23]}  Ke7 {[%clk 0:00:05]} 31. Kd5 {[%clk 0:01:21]}  g6 {[%clk 0:00:06]} 32. a5 {[%clk 0:01:21]}  Bxa5 {[%clk 0:00:06]} 33. f4 {[%clk 0:01:19]}  Bb6 {[%clk 0:00:06]} 34. h3 {[%clk 0:01:19]}  Bf2 {[%clk 0:00:06]} 35. g4 {[%clk 0:01:20]}  hxg4 {[%clk 0:00:05]} 36. hxg4 {[%clk 0:01:20]}  Bg3 {[%clk 0:00:05]} 37. f5 {[%clk 0:01:21]}  g5 {[%clk 0:00:06]} 38. Kd4 {[%clk 0:01:15]}  Bf2+ {[%clk 0:00:05]} 39. Kd5 {[%clk 0:01:16]}  f6 {[%clk 0:00:05]} 40. e6 {[%clk 0:01:16]}  Be1 {[%clk 0:00:04]} 41. Kc6 {[%clk 0:01:17]}  Bb4 {[%clk 0:00:05]} 42. Kd5 {[%clk 0:01:17]}  Bd6 {[%clk 0:00:04]} 43. Kc6 {[%clk 0:01:17]}  Bf4 {[%clk 0:00:05]} 44. Kd5 {[%clk 0:01:17]}  Bg3 {[%clk 0:00:05]} 45. Kc6 {[%clk 0:01:18]}  Kd8 {[%clk 0:00:05]} 46. Kb7 {[%clk 0:01:18]}  Bh2 {[%clk 0:00:04]} 47. Kc6 {[%clk 0:01:18]}  Ke7 {[%clk 0:00:04]} 48. Kc5 {[%clk 0:01:18]}  Bg3 {[%clk 0:00:05]} 49. Kc6 {[%clk 0:01:19]}  Bf2 {[%clk 0:00:06]} 50. Kd5 {[%clk 0:01:19]}  Bg1 {[%clk 0:00:06]} 51. Kc6 {[%clk 0:01:19]}  Bh2 {[%clk 0:00:07]} 52. Kd5 {[%clk 0:01:20]}  Bg3 {[%clk 0:00:08]} 53. Kc6 {[%clk 0:01:20]} 1/2-1/2


[Site "https://www.chess.com"]

[Event "Titled Tuesday Blitz October 11 Early 2022"]
[White "Tarasova, Viktoriya"]
[Black "Shandrygin, Nikita"]
[WhiteFideId "4175840"]
[BlackFideId "24198668"]
[WhiteElo "2182"]
[BlackElo "2323"]
[Result "1-0"]
[Round "07"]
[TimeControl "180+1"]
[Date "2022.10.12"]
[WhiteClock "0:00:06"]
[BlackClock "0:00:02"]

1. d4 {[%clk 0:03:00]}  Nf6 {[%clk 0:02:59]} 2. c4 {[%clk 0:03:01]}  e6 {[%clk 0:03:00]} 3. Nc3 {[%clk 0:03:01]}  Bb4 {[%clk 0:03:00]} 4. Nf3 {[%clk 0:03:01]}  O-O {[%clk 0:02:54]} 5. Bg5 {[%clk 0:03:00]}  h6 {[%clk 0:02:48]} 6. Bh4 {[%clk 0:02:59]}  b6 {[%clk 0:02:47]} 7. e3 {[%clk 0:03:00]}  Bb7 {[%clk 0:02:46]} 8. Bd3 {[%clk 0:03:00]}  g5 {[%clk 0:02:45]} 9. Bg3 {[%clk 0:02:59]}  Ne4 {[%clk 0:02:44]} 10. O-O {[%clk 0:02:55]}  Bxc3 {[%clk 0:02:38]} 11. bxc3 {[%clk 0:02:55]}  d6 {[%clk 0:02:35]} 12. Nd2 {[%clk 0:02:44]}  Nxd2 {[%clk 0:02:06]} 13. Qxd2 {[%clk 0:02:43]}  Nd7 {[%clk 0:02:06]} 14. f4 {[%clk 0:02:42]}  f5 {[%clk 0:02:03]} 15. Rae1 {[%clk 0:02:26]}  Nf6 {[%clk 0:02:01]} 16. fxg5 {[%clk 0:02:11]}  hxg5 {[%clk 0:01:59]} 17. d5 {[%clk 0:02:11]}  Qe7 {[%clk 0:01:33]} 18. e4 {[%clk 0:01:45]}  Nxe4 {[%clk 0:01:15]} 19. Bxe4 {[%clk 0:01:44]}  fxe4 {[%clk 0:01:15]} 20. Rxf8+ {[%clk 0:01:43]}  Rxf8 {[%clk 0:01:16]} 21. Rxe4 {[%clk 0:01:44]}  Qf6 {[%clk 0:01:10]} 22. h3 {[%clk 0:01:28]}  exd5 {[%clk 0:00:42]} 23. cxd5 {[%clk 0:01:27]}  Bc8 {[%clk 0:00:41]} 24. Kh2 {[%clk 0:01:18]}  Bd7 {[%clk 0:00:34]} 25. Re3 {[%clk 0:01:13]}  Rf7 {[%clk 0:00:21]} 26. Re2 {[%clk 0:01:02]}  Kh7 {[%clk 0:00:19]} 27. Rf2 {[%clk 0:00:58]}  Qg6 {[%clk 0:00:17]} 28. Rxf7+ {[%clk 0:00:58]}  Qxf7 {[%clk 0:00:18]} 29. Qxg5 {[%clk 0:00:58]}  Bf5 {[%clk 0:00:15]} 30. c4 {[%clk 0:00:49]}  Qg6 {[%clk 0:00:08]} 31. Qh4+ {[%clk 0:00:50]}  Qh6 {[%clk 0:00:07]} 32. Qe7+ {[%clk 0:00:46]}  Qg7 {[%clk 0:00:07]} 33. Qe3 {[%clk 0:00:41]}  Qg6 {[%clk 0:00:04]} 34. Bf4 {[%clk 0:00:32]}  Bd3 {[%clk 0:00:04]} 35. Qe7+ {[%clk 0:00:14]}  Qg7 {[%clk 0:00:04]} 36. Qh4+ {[%clk 0:00:15]}  Kg8 {[%clk 0:00:04]} 37. Bg3 {[%clk 0:00:12]}  Bf5 {[%clk 0:00:03]} 38. Qf4 {[%clk 0:00:11]}  Qg6 {[%clk 0:00:03]} 39. Bh4 {[%clk 0:00:09]}  Qh7 {[%clk 0:00:02]} 40. Qg5+ {[%clk 0:00:08]}  Qg6 {[%clk 0:00:03]} 41. Qd8+ {[%clk 0:00:08]}  Kh7 {[%clk 0:00:03]} 42. g4 {[%clk 0:00:08]}  Bd3 {[%clk 0:00:02]} 43. Bf6 {[%clk 0:00:07]}  Qe4 {[%clk 0:00:02]} 44. Qxc7+ {[%clk 0:00:06]} 1-0


[Site "https://www.chess.com"]

[Event "Titled Tuesday Blitz October 11 Early 2022"]
[White "Terzi, Alexei"]
[Black "Salman, Pavel"]
[WhiteFideId "13505076"]
[BlackFideId "24153753"]
[WhiteElo "2172"]
[BlackElo "2187"]
[Result "0-1"]
[Round "07"]
[TimeControl "180+1"]
[Date "2022.10.12"]
[WhiteClock "0:00:04"]
[BlackClock "0:00:14"]

1. e4 {[%clk 0:03:00]}  c5 {[%clk 0:03:00]} 2. Nf3 {[%clk 0:03:00]}  e6 {[%clk 0:03:00]} 3. d4 {[%clk 0:03:01]}  cxd4 {[%clk 0:03:01]} 4. Nxd4 {[%clk 0:03:02]}  a6 {[%clk 0:03:02]} 5. c4 {[%clk 0:03:00]}  Nf6 {[%clk 0:03:01]} 6. Nc3 {[%clk 0:02:59]}  Qc7 {[%clk 0:03:02]} 7. a3 {[%clk 0:02:58]}  b6 {[%clk 0:03:02]} 8. Be3 {[%clk 0:02:54]}  Bb7 {[%clk 0:03:02]} 9. f3 {[%clk 0:02:54]}  Be7 {[%clk 0:03:01]} 10. Be2 {[%clk 0:02:53]}  d6 {[%clk 0:03:02]} 11. O-O {[%clk 0:02:53]}  Nbd7 {[%clk 0:03:01]} 12. Rc1 {[%clk 0:02:52]}  O-O {[%clk 0:03:00]} 13. b4 {[%clk 0:02:51]}  Rac8 {[%clk 0:03:01]} 14. Nb3 {[%clk 0:02:47]}  Qb8 {[%clk 0:03:01]} 15. Qd2 {[%clk 0:02:43]}  Bd8 {[%clk 0:02:57]} 16. Rfd1 {[%clk 0:02:42]}  Bc7 {[%clk 0:02:58]} 17. Bf4 {[%clk 0:02:42]}  Ne5 {[%clk 0:02:56]} 18. Bxe5 {[%clk 0:02:42]}  dxe5 {[%clk 0:02:56]} 19. c5 {[%clk 0:02:42]}  Rfd8 {[%clk 0:02:52]} 20. Qe3 {[%clk 0:02:38]}  bxc5 {[%clk 0:02:27]} 21. Nxc5 {[%clk 0:02:33]}  Bb6 {[%clk 0:02:27]} 22. N3a4 {[%clk 0:02:31]}  Ba7 {[%clk 0:02:26]} 23. Kh1 {[%clk 0:02:23]}  Bc6 {[%clk 0:02:03]} 24. Qb3 {[%clk 0:02:22]}  Rxd1+ {[%clk 0:01:37]} 25. Rxd1 {[%clk 0:02:21]}  Bxa4 {[%clk 0:01:34]} 26. Nxa4 {[%clk 0:02:14]}  a5 {[%clk 0:01:18]} 27. Ba6 {[%clk 0:01:30]}  Rd8 {[%clk 0:01:10]} 28. Rxd8+ {[%clk 0:01:24]}  Qxd8 {[%clk 0:01:11]} 29. Qd3 {[%clk 0:01:23]}  Bd4 {[%clk 0:00:40]} 30. g3 {[%clk 0:00:59]}  axb4 {[%clk 0:00:36]} 31. axb4 {[%clk 0:00:59]}  h5 {[%clk 0:00:37]} 32. Kg2 {[%clk 0:00:56]}  h4 {[%clk 0:00:37]} 33. Qc4 {[%clk 0:00:54]}  Kh7 {[%clk 0:00:32]} 34. b5 {[%clk 0:00:45]}  Qa5 {[%clk 0:00:31]} 35. Kh3 {[%clk 0:00:40]}  hxg3 {[%clk 0:00:27]} 36. hxg3 {[%clk 0:00:39]}  Qe1 {[%clk 0:00:27]} 37. Qc2 {[%clk 0:00:31]}  Qh1+ {[%clk 0:00:20]} 38. Qh2 {[%clk 0:00:30]}  Qxf3 {[%clk 0:00:21]} 39. b6 {[%clk 0:00:26]}  Ng4 {[%clk 0:00:15]} 40. Be2 {[%clk 0:00:14]}  Nf2+ {[%clk 0:00:14]} 41. Kh4 {[%clk 0:00:05]}  Qf6+ {[%clk 0:00:13]} 42. Kh5 {[%clk 0:00:04]}  Qh6# {[%clk 0:00:14]} 0-1


[Site "https://www.chess.com"]

[Event "Titled Tuesday Blitz October 11 Early 2022"]
[White "Timofeev, Artyom"]
[Black "Dardha, Daniel"]
[WhiteFideId "4140419"]
[BlackFideId "240990"]
[WhiteElo "2579"]
[BlackElo "2528"]
[Result "0-1"]
[Round "07"]
[TimeControl "180+1"]
[Date "2022.10.11"]
[WhiteClock "0:00:03"]
[BlackClock "0:00:03"]

1. e4 {[%clk 0:03:00]}  e5 {[%clk 0:02:59]} 2. Nf3 {[%clk 0:03:00]}  Nc6 {[%clk 0:02:59]} 3. Bb5 {[%clk 0:03:00]}  Nf6 {[%clk 0:02:59]} 4. O-O {[%clk 0:03:00]}  Nxe4 {[%clk 0:02:59]} 5. d4 {[%clk 0:03:00]}  Nd6 {[%clk 0:02:59]} 6. Bxc6 {[%clk 0:03:00]}  dxc6 {[%clk 0:03:00]} 7. dxe5 {[%clk 0:03:01]}  Nf5 {[%clk 0:03:01]} 8. Qxd8+ {[%clk 0:03:01]}  Kxd8 {[%clk 0:03:01]} 9. Nc3 {[%clk 0:03:02]}  Be7 {[%clk 0:03:02]} 10. g3 {[%clk 0:03:01]}  Ke8 {[%clk 0:02:53]} 11. Kg2 {[%clk 0:02:59]}  h5 {[%clk 0:02:50]} 12. h3 {[%clk 0:02:59]}  Be6 {[%clk 0:02:48]} 13. Rd1 {[%clk 0:02:59]}  b5 {[%clk 0:02:38]} 14. a3 {[%clk 0:02:55]}  a5 {[%clk 0:02:38]} 15. Bg5 {[%clk 0:02:52]}  Rb8 {[%clk 0:02:14]} 16. Bxe7 {[%clk 0:02:27]}  Kxe7 {[%clk 0:02:15]} 17. Ne2 {[%clk 0:02:27]}  Bd5 {[%clk 0:02:01]} 18. Nf4 {[%clk 0:02:25]}  Be4 {[%clk 0:02:01]} 19. h4 {[%clk 0:01:53]}  Rbd8 {[%clk 0:01:57]} 20. c3 {[%clk 0:01:52]}  c5 {[%clk 0:01:32]} 21. Nh3 {[%clk 0:01:41]}  f6 {[%clk 0:01:18]} 22. exf6+ {[%clk 0:01:40]}  gxf6 {[%clk 0:01:19]} 23. Ng1 {[%clk 0:01:39]}  Kf7 {[%clk 0:01:15]} 24. Kh3 {[%clk 0:01:26]}  a4 {[%clk 0:01:07]} 25. Re1 {[%clk 0:01:21]}  Bc6 {[%clk 0:01:04]} 26. Rad1 {[%clk 0:01:18]}  Nd6 {[%clk 0:01:02]} 27. Nd2 {[%clk 0:01:16]}  Rhe8 {[%clk 0:00:52]} 28. Rxe8 {[%clk 0:00:55]}  Rxe8 {[%clk 0:00:53]} 29. f3 {[%clk 0:00:51]}  Nf5 {[%clk 0:00:51]} 30. Rc1 {[%clk 0:00:39]}  Rd8 {[%clk 0:00:40]} 31. Ne4 {[%clk 0:00:37]}  Rd3 {[%clk 0:00:26]} 32. Nxc5 {[%clk 0:00:31]}  Rd2 {[%clk 0:00:26]} 33. b4 {[%clk 0:00:29]}  Ra2 {[%clk 0:00:16]} 34. c4 {[%clk 0:00:29]}  Rxa3 {[%clk 0:00:16]} 35. cxb5 {[%clk 0:00:28]}  Bxb5 {[%clk 0:00:17]} 36. Ne4 {[%clk 0:00:22]}  c6 {[%clk 0:00:16]} 37. g4 {[%clk 0:00:19]}  Nd4 {[%clk 0:00:10]} 38. Kg3 {[%clk 0:00:17]}  hxg4 {[%clk 0:00:10]} 39. Nd6+ {[%clk 0:00:15]}  Ke6 {[%clk 0:00:08]} 40. Nxb5 {[%clk 0:00:16]}  cxb5 {[%clk 0:00:08]} 41. Kxg4 {[%clk 0:00:16]}  Ra2 {[%clk 0:00:07]} 42. Nh3 {[%clk 0:00:15]}  Rg2+ {[%clk 0:00:06]} 43. Kh5 {[%clk 0:00:14]}  Rg8 {[%clk 0:00:05]} 44. Kh6 {[%clk 0:00:12]}  Nf5+ {[%clk 0:00:03]} 45. Kh7 {[%clk 0:00:12]}  Rg7+ {[%clk 0:00:03]} 46. Kh8 {[%clk 0:00:13]}  Ra7 {[%clk 0:00:04]} 47. Nf4+ {[%clk 0:00:12]}  Kf7 {[%clk 0:00:04]} 48. Nd5 {[%clk 0:00:09]}  Nxh4 {[%clk 0:00:03]} 49. Nc7 {[%clk 0:00:06]}  Ng6+ {[%clk 0:00:03]} 50. Kh7 {[%clk 0:00:05]}  a3 {[%clk 0:00:04]} 51. Nxb5 {[%clk 0:00:05]}  Ra8 {[%clk 0:00:04]} 52. Nd6+ {[%clk 0:00:05]}  Ke6 {[%clk 0:00:03]} 53. Ne4 {[%clk 0:00:05]}  Ne5 {[%clk 0:00:02]} 54. b5 {[%clk 0:00:05]}  a2 {[%clk 0:00:02]} 55. Nc5+ {[%clk 0:00:05]}  Kf7 {[%clk 0:00:01]} 56. Nb3 {[%clk 0:00:05]}  Ng6 {[%clk 0:00:01]} 57. Rc7+ {[%clk 0:00:04]}  Ne7 {[%clk 0:00:02]} 58. b6 {[%clk 0:00:04]}  Ra4 {[%clk 0:00:02]} 59. Rxe7+ {[%clk 0:00:03]}  Kxe7 {[%clk 0:00:03]} 60. b7 {[%clk 0:00:03]}  Rb4 {[%clk 0:00:03]} 61. Nc5 {[%clk 0:00:03]}  a1=Q {[%clk 0:00:03]} 0-1


[Site "https://www.chess.com"]

[Event "Titled Tuesday Blitz October 11 Early 2022"]
[White "Tologon tegin, Semetei"]
[Black "Krzywda, Andrzej"]
[WhiteFideId "13800574"]
[BlackFideId "1114565"]
[WhiteElo "2282"]
[BlackElo "2149"]
[Result "1-0"]
[Round "07"]
[TimeControl "180+1"]
[Date "2022.10.12"]
[WhiteClock "0:00:14"]
[BlackClock "0:00:03"]

1. e4 {[%clk 0:02:52]}  c5 {[%clk 0:02:59]} 2. Nf3 {[%clk 0:02:51]}  Nc6 {[%clk 0:03:00]} 3. d4 {[%clk 0:02:52]}  cxd4 {[%clk 0:03:00]} 4. Nxd4 {[%clk 0:02:53]}  Nf6 {[%clk 0:03:00]} 5. Nc3 {[%clk 0:02:52]}  e5 {[%clk 0:02:59]} 6. Ndb5 {[%clk 0:02:52]}  d6 {[%clk 0:03:00]} 7. Bg5 {[%clk 0:02:51]}  a6 {[%clk 0:03:00]} 8. Na3 {[%clk 0:02:52]}  b5 {[%clk 0:03:00]} 9. Nd5 {[%clk 0:02:52]}  Be7 {[%clk 0:02:58]} 10. Bxf6 {[%clk 0:02:52]}  Bxf6 {[%clk 0:02:57]} 11. c4 {[%clk 0:02:53]}  O-O {[%clk 0:02:47]} 12. cxb5 {[%clk 0:02:46]}  Nd4 {[%clk 0:02:40]} 13. Bd3 {[%clk 0:02:29]}  axb5 {[%clk 0:02:34]} 14. O-O {[%clk 0:02:28]}  Bd7 {[%clk 0:02:25]} 15. Nc2 {[%clk 0:02:26]}  Ne6 {[%clk 0:02:16]} 16. Qe2 {[%clk 0:02:04]}  Bg5 {[%clk 0:02:08]} 17. b3 {[%clk 0:01:49]}  Rb8 {[%clk 0:01:52]} 18. g3 {[%clk 0:01:41]}  Nc5 {[%clk 0:01:48]} 19. Nce3 {[%clk 0:01:24]}  b4 {[%clk 0:01:31]} 20. Rfd1 {[%clk 0:01:09]}  Ne6 {[%clk 0:00:56]} 21. Nc2 {[%clk 0:01:06]}  g6 {[%clk 0:00:46]} 22. Ndxb4 {[%clk 0:01:03]}  h5 {[%clk 0:00:43]} 23. h4 {[%clk 0:00:56]}  Bh6 {[%clk 0:00:43]} 24. Bc4 {[%clk 0:00:51]}  Kg7 {[%clk 0:00:42]} 25. Rxd6 {[%clk 0:00:48]}  Qe7 {[%clk 0:00:42]} 26. Rad1 {[%clk 0:00:48]}  Rb7 {[%clk 0:00:33]} 27. Nc6 {[%clk 0:00:37]}  Bxc6 {[%clk 0:00:31]} 28. Rxc6 {[%clk 0:00:38]}  Rd8 {[%clk 0:00:23]} 29. Bxe6 {[%clk 0:00:36]}  fxe6 {[%clk 0:00:19]} 30. Rxd8 {[%clk 0:00:32]}  Qxd8 {[%clk 0:00:20]} 31. Rxe6 {[%clk 0:00:31]}  Rd7 {[%clk 0:00:19]} 32. Rxe5 {[%clk 0:00:28]}  Rd1+ {[%clk 0:00:18]} 33. Kg2 {[%clk 0:00:27]}  Rd2 {[%clk 0:00:18]} 34. Qc4 {[%clk 0:00:24]}  Qf6 {[%clk 0:00:08]} 35. Qc7+ {[%clk 0:00:24]}  Kf8 {[%clk 0:00:08]} 36. Qc5+ {[%clk 0:00:17]}  Kf7 {[%clk 0:00:04]} 37. Rd5 {[%clk 0:00:17]}  Rxd5 {[%clk 0:00:02]} 38. exd5 {[%clk 0:00:16]}  Qe5 {[%clk 0:00:02]} 39. Qc4 {[%clk 0:00:14]}  Ke8 {[%clk 0:00:02]} 40. Nb4 {[%clk 0:00:14]}  Kd7 {[%clk 0:00:01]} 41. Nd3 {[%clk 0:00:14]}  Qd6 {[%clk 0:00:01]} 42. Nc5+ {[%clk 0:00:14]}  Kc8 {[%clk 0:00:01]} 43. Ne4+ {[%clk 0:00:14]}  Kd7 {[%clk 0:00:02]} 44. Nxd6 {[%clk 0:00:14]}  Kxd6 {[%clk 0:00:03]} 45. Qc6+ {[%clk 0:00:14]} 1-0


[Site "https://www.chess.com"]